fUST/lending_fUST_20250930
["ID","MTS","AMOUNT","RATE_DAILY","PERIOD"]
[388581701,1759246116681,220.88689455,0.00033544,120]
[388581702,1759246117035,1842.214706,0.00027,120]
[388581703,1759246117711,324.28092541,0.00033544,120]
[388581704,1759246117826,662.74578211,0.00033544,120]
[388581705,1759246118699,892.07668421,0.00033544,60]
[388581706,1759246118808,557.27506588,0.00033544,120]
[388581707,1759246118921,280.20850138,0.00033544,60]
[388581708,1759246119034,292.762509,0.00027397,120]
[388581709,1759246119154,186.15617314,0.00025,120]
[388581710,1759246119261,166.30668208,0.00033544,120]
[388581711,1759246119384,690.82449099,0.00033544,60]
[388581712,1759246119581,223.6501732,0.0001536,120]
[388581713,1759246119817,513.76731423,0.00025,120]
[388581714,1759246119934,503.76512,0.00033544,120]
[388581715,1759246120058,544.56772756,0.00033544,120]
[388581716,1759246120868,163.86538194,0.00033544,120]
[388581717,1759246120982,224.4446843,0.00033544,120]
[388581721,1759246121178,195.10147604,0.0002739,120]
[388581722,1759246121366,173.97746806,0.00033544,60]
[388581723,1759246121788,717.05233923,0.00026,120]
[388581724,1759246121900,167.00691895,0.00033544,120]
[388581725,1759246122083,356.77052308,0.00026,120]
[388581727,1759246122400,428.87341734,0.00025,120]
[388581728,1759246122524,940.519225,0.00033544,120]
[388581729,1759246122836,240.28800546,0.00033544,120]
[388581730,1759246123470,1854.57657185,0.00033544,120]
[388581731,1759246123886,412.69120141,0.00033544,120]
[388581732,1759246123987,625.49893173,0.00033544,120]
[388581733,1759246124099,630.54049028,0.00033544,120]
[388581734,1759246124265,190.09835489,0.00033544,120]
[388581735,1759246124778,163.07216077,0.00028,120]
[388581736,1759246129268,167.4,0.0002191,120]
[388581738,1759246227907,500.16735262,0.00028767,120]
[388581785,1759246232950,-500.0,0.00019448,2]
[388581786,1759246232961,-500.0,0.00019448,2]
[388581787,1759246232970,-500.0,0.00019448,2]
[388581788,1759246232980,-500.0,0.00019448,2]
[388581789,1759246232990,-541.03,0.00019448,2]
[388581790,1759246232999,-500.0,0.00019448,2]
[388581791,1759246233008,-500.0,0.00019448,2]
[388581792,1759246233017,-500.0,0.00019448,2]
[388581793,1759246233027,-521.99,0.00019448,2]
[388581794,1759246233039,-500.0,0.00019448,2]
[388581795,1759246233049,-500.0,0.00019448,2]
[388581796,1759246233058,-115.34349747,0.00019448,2]
[388581797,1759246233071,-812.20650253,0.00019448,2]
[388581798,1759246233082,-500.0,0.00019448,2]
[388581799,1759246233091,-1173.01,0.00019448,2]
[388581800,1759246233101,-500.0,0.00019448,2]
[388581801,1759246233110,-1040.87,0.00019448,2]
[388581802,1759246233119,-500.0,0.00019449,2]
[388581803,1759246233128,-502.54,0.00019449,2]
[388581804,1759246233138,-73.10466376,0.0001945,2]
[388581805,1759246233150,-1563.03533624,0.0001945,2]
[388581806,1759246233160,-744.97,0.0001945,2]
[388581807,1759246233170,-500.0,0.0001945,2]
[388581808,1759246233179,-512.32,0.0001945,2]
[388581809,1759246233363,-548.12,0.0001945,2]
[388581810,1759246233373,-500.0,0.0001945,2]
[388581811,1759246233382,-500.0,0.0001945,2]
[388581812,1759246233391,-500.0,0.0001945,2]
[388581813,1759246233401,-500.0,0.0001945,2]
[388581814,1759246233410,-500.0,0.0001945,2]
[388581815,1759246233420,-500.0,0.0001945,2]
[388581816,1759246233429,-384.60336675,0.0001945,2]
[388581817,1759246233438,-500.0,0.0001945,2]
[388581818,1759246233446,-500.0,0.0001945,2]
[388581819,1759246233455,-500.0,0.0001945,2]
[388581820,1759246233464,-480.0,0.0001945,2]
[388581821,1759246233474,-500.0,0.0001945,2]
[388581822,1759246233483,-500.0,0.00019451,2]
[388581823,1759246233492,-500.0,0.00019451,2]
[388581824,1759246233502,-500.0,0.00019451,2]
[388581825,1759246233511,-500.0,0.00019451,2]
[388581826,1759246233520,-500.0,0.00019451,2]
[388581827,1759246233529,-500.0,0.00019451,2]
[388581828,1759246233540,-500.0,0.00019451,2]
[388581829,1759246233549,-500.0,0.00019451,2]
[388581830,1759246233559,-500.0,0.00019451,2]
[388581831,1759246233568,-500.0,0.00019451,2]
[388581832,1759246233578,-500.0,0.00019451,2]
[388581833,1759246233587,-500.0,0.00019451,2]
[388581834,1759246233597,-500.0,0.00019451,2]
[388581835,1759246233606,-500.0,0.00019451,2]
[388581836,1759246233616,-500.0,0.00019451,2]
[388581837,1759246233626,-480.0,0.00019451,2]
[388581838,1759246233635,-480.0,0.00019451,2]
[388581839,1759246233643,-500.0,0.00019451,2]
[388581840,1759246233652,-500.0,0.00019451,2]
[388581841,1759246233662,-500.0,0.00019451,2]
[388581842,1759246233672,-500.0,0.00019451,2]
[388581843,1759246233682,-574.58,0.00019451,2]
[388581844,1759246233691,-500.0,0.00019451,2]
[388581845,1759246233701,-500.0,0.00019451,2]
[388581846,1759246233710,-480.0,0.00019451,2]
[388581847,1759246233719,-500.0,0.00019722,2]
[388581848,1759246233729,-500.0,0.00019722,2]
[388581849,1759246233738,-500.0,0.00019722,2]
[388581850,1759246233747,-500.0,0.00019722,2]
[388581851,1759246233756,-541.03,0.00019722,2]
[388581852,1759246233766,-500.0,0.00019722,2]
[388581853,1759246233775,-500.0,0.00019722,2]
[388581854,1759246233785,-500.0,0.00019722,2]
[388581855,1759246233796,-521.99,0.00019722,2]
[388581856,1759246233806,-500.0,0.00019722,2]
[388581857,1759246233816,-500.0,0.00019722,2]
[388581858,1759246233826,-927.55,0.00019722,2]
[388581859,1759246233835,-500.0,0.00019722,2]
[388581860,1759246233845,-1173.01,0.00019722,2]
[388581861,1759246233854,-500.0,0.00019722,2]
[388581862,1759246233863,-1040.87,0.00019722,2]
[388581863,1759246233872,-500.0,0.00019723,2]
[388581864,1759246233881,-502.54,0.00019723,2]
[388581865,1759246233891,-1636.14,0.00019724,2]
[388581866,1759246233900,-744.97,0.00019724,2]
[388581867,1759246233909,-500.0,0.00019724,2]
[388581868,1759246233918,-512.32,0.00019724,2]
[388581869,1759246233927,-548.12,0.00019724,2]
[388581870,1759246233936,-500.0,0.00019724,2]
[388581871,1759246233945,-500.0,0.00019724,2]
[388581872,1759246233954,-500.0,0.00019724,2]
[388581873,1759246233964,-500.0,0.00019724,2]
[388581874,1759246233973,-500.0,0.00019724,2]
[388581875,1759246233983,-500.0,0.00019724,2]
[388581876,1759246233992,-500.0,0.00019724,2]
[388581877,1759246234002,-500.0,0.00019724,2]
[388581878,1759246234011,-500.0,0.00019724,2]
[388581879,1759246234020,-500.0,0.00019724,2]
[388581880,1759246234029,-500.0,0.00019725,2]
[388581881,1759246234041,-289.35858782,0.00019725,2]
[388581882,1759246234050,-500.0,0.00019725,2]
[388581883,1759246234059,-500.0,0.00019725,2]
[388581884,1759246234069,-500.0,0.00019725,2]
[388581885,1759246234078,-500.0,0.00019725,2]
[388581886,1759246234087,-500.0,0.00019725,2]
[388581887,1759246234096,-500.0,0.00019725,2]
[388581888,1759246234107,-500.0,0.00019725,2]
[388581889,1759246234116,-500.0,0.00019725,2]
[388581890,1759246234126,-500.0,0.00019725,2]
[388581891,1759246234135,-500.0,0.00019725,2]
[388581892,1759246234144,-500.0,0.00019725,2]
[388581893,1759246234153,-500.0,0.00019725,2]
[388581894,1759246234163,-500.0,0.00019725,2]
[388581895,1759246234172,-500.0,0.00019725,2]
[388581896,1759246234182,-500.0,0.00019725,2]
[388581897,1759246234192,-500.0,0.00019725,2]
[388581898,1759246234201,-480.0,0.00019725,2]
[388581899,1759246234211,-500.0,0.00019725,2]
[388581900,1759246234220,-480.0,0.00019725,2]
[388581901,1759246234229,-500.0,0.00019944,2]
[388581902,1759246234239,-500.0,0.00019996,2]
[388581903,1759246234249,-500.0,0.00019996,2]
[388581904,1759246234258,-500.0,0.00019996,2]
[388581905,1759246234267,-500.0,0.00019996,2]
[388581906,1759246234277,-541.03,0.00019996,2]
[388581907,1759246234286,-500.0,0.00019996,2]
[388581908,1759246234297,-500.0,0.00019996,2]
[388581909,1759246234306,-500.0,0.00019996,2]
[388581910,1759246234321,-521.99,0.00019996,2]
[388581911,1759246234330,-500.0,0.00019996,2]
[388581912,1759246234339,-500.0,0.00019996,2]
[388581913,1759246234348,-927.55,0.00019996,2]
[388581914,1759246234358,-500.0,0.00019996,2]
[388581915,1759246234367,-1173.01,0.00019996,2]
[388581916,1759246234376,-500.0,0.00019996,2]
[388581917,1759246234386,-1040.87,0.00019996,2]
[388581918,1759246234397,-500.0,0.00019997,2]
[388581919,1759246234407,-502.54,0.00019997,2]
[388581920,1759246234416,-1636.14,0.00019998,2]
[388581921,1759246234426,-744.97,0.00019998,2]
[388581922,1759246234435,-500.0,0.00019998,2]
[388581923,1759246234445,-512.32,0.00019998,2]
[388581924,1759246234454,-548.12,0.00019998,2]
[388581925,1759246234464,-500.0,0.00019998,2]
[388581926,1759246234473,-500.0,0.00019998,2]
[388581927,1759246234483,-500.0,0.00019998,2]
[388581928,1759246234493,-500.0,0.00019998,2]
[388581929,1759246234502,-500.0,0.00019998,2]
[388581930,1759246234513,-380.0,0.00019998,2]
[388581931,1759246234522,-500.0,0.00019998,2]
[388581932,1759246234532,-500.0,0.00019998,2]
[388581933,1759246234542,-440.0,0.00019998,2]
[388581934,1759246234552,-500.0,0.00019998,2]
[388581935,1759246234561,-500.0,0.00019999,2]
[388581936,1759246234571,-500.0,0.00019999,2]
[388581937,1759246234580,-500.0,0.00019999,2]
[388581938,1759246234589,-500.0,0.00019999,2]
[388581939,1759246234599,-500.0,0.00019999,2]
[388581940,1759246234609,-500.0,0.00019999,2]
[388581941,1759246234618,-500.0,0.00019999,2]
[388581942,1759246234627,-500.0,0.00019999,2]
[388581943,1759246234636,-500.0,0.00019999,2]
[388581944,1759246234645,-500.0,0.00019999,2]
[388581945,1759246234654,-500.0,0.00019999,2]
[388581946,1759246234663,-443.16089539,0.00019999,2]
[388581947,1759246234672,-500.0,0.00019999,2]
[388581948,1759246234682,-500.0,0.00019999,2]
[388581949,1759246234691,-500.0,0.00019999,2]
[388581950,1759246234700,-500.0,0.00019999,2]
[388581951,1759246234710,-361.03999097,0.00019999,2]
[388581952,1759246234719,-500.0,0.00019999,2]
[388581953,1759246234729,-161.0,0.0002,4]
[388581954,1759246234739,-177.09278263,0.00020172,2]
[388581955,1759246234748,-500.0,0.0002027,2]
[388581956,1759246234758,-500.0,0.0002027,2]
[388581957,1759246234767,-462.93152913,0.0002027,2]
[388581958,1759246234776,-500.0,0.0002027,2]
[388581959,1759246234786,-541.03,0.0002027,2]
[388581960,1759246234797,-500.0,0.0002027,2]
[388581961,1759246234806,-500.0,0.0002027,2]
[388581962,1759246234816,-500.0,0.0002027,2]
[388581963,1759246234826,-521.99,0.0002027,2]
[388581964,1759246234835,-500.0,0.0002027,2]
[388581965,1759246234844,-500.0,0.0002027,2]
[388581966,1759246234854,-927.55,0.0002027,2]
[388581967,1759246234864,-373.82,0.0002027,2]
[388581968,1759246234874,-1173.01,0.0002027,2]
[388581969,1759246234883,-500.0,0.0002027,2]
[388581970,1759246234893,-1040.87,0.0002027,2]
[388581971,1759246234902,-500.0,0.00020271,2]
[388581972,1759246234912,-502.54,0.00020271,2]
[388581973,1759246234921,-1636.14,0.00020272,2]
[388581974,1759246234931,-744.97,0.00020272,2]
[388581975,1759246234940,-168.33743244,0.00020272,2]
[388581976,1759246234950,-512.32,0.00020272,2]
[388581977,1759246234960,-548.12,0.00020272,2]
[388581978,1759246234969,-500.0,0.00020272,2]
[388581979,1759246234979,-500.0,0.00020272,2]
[388581980,1759246234988,-500.0,0.00020272,2]
[388581981,1759246234998,-500.0,0.00020272,2]
[388581982,1759246235007,-500.0,0.00020272,2]
[388581983,1759246235017,-500.0,0.00020272,2]
[388581984,1759246235026,-330.15716045,0.00020272,2]
[388581985,1759246235036,-360.0,0.00020272,2]
[388581986,1759246235046,-500.0,0.00020273,2]
[388581987,1759246235056,-500.0,0.00020273,2]
[388581988,1759246235065,-500.0,0.00020273,2]
[388581989,1759246235075,-500.0,0.00020273,2]
[388581990,1759246235084,-500.0,0.00020273,2]
[388581991,1759246235093,-500.0,0.00020273,2]
[388581992,1759246235102,-500.0,0.00020273,2]
[388581993,1759246235112,-500.0,0.00020273,2]
[388581994,1759246235121,-500.0,0.00020273,2]
[388581995,1759246235131,-500.0,0.00020273,2]
[388581996,1759246235140,-500.0,0.00020273,2]
[388581997,1759246235150,-500.0,0.00020273,2]
[388581998,1759246235159,-500.0,0.00020273,2]
[388581999,1759246235169,-500.0,0.00020273,2]
[388582000,1759246235178,-500.0,0.00020273,2]
[388582001,1759246235188,-500.0,0.00020273,2]
[388582002,1759246235198,-500.0,0.00020273,2]
[388582003,1759246235207,-22075.3657909,0.000203,2]
[388582004,1759246235217,-1000.0,0.00020492,2]
[388582005,1759246235226,-192.07,0.00020535,2]
[388582006,1759246235236,-219.18,0.00020536,3]
[388582007,1759246235245,-441.39900132,0.00020544,2]
[388582008,1759246235254,-500.0,0.00020544,2]
[388582009,1759246235264,-500.0,0.00020544,2]
[388582010,1759246235273,-541.03,0.00020544,2]
[388582011,1759246235283,-500.0,0.00020544,2]
[388582012,1759246235293,-500.0,0.00020544,2]
[388582013,1759246235303,-500.0,0.00020544,2]
[388582014,1759246235317,-521.99,0.00020544,2]
[388582015,1759246235327,-500.0,0.00020544,2]
[388582016,1759246235336,-500.0,0.00020544,2]
[388582017,1759246235346,-927.55,0.00020544,2]
[388582018,1759246235355,-1173.01,0.00020544,2]
[388582019,1759246235365,-500.0,0.00020544,2]
[388582020,1759246235375,-1040.87,0.00020544,2]
[388582021,1759246235384,-500.0,0.00020545,2]
[388582022,1759246235394,-500.0,0.00020545,2]
[388582023,1759246235403,-500.0,0.00020545,2]
[388582024,1759246235412,-511.04812749,0.00020545,2]
[388582025,1759246235422,-502.54,0.00020545,2]
[388582026,1759246235431,-500.0,0.00020545,2]
[388582027,1759246235440,-550.94,0.00020545,2]
[388582028,1759246235450,-694.38,0.00020545,2]
[388582029,1759246235460,-500.0,0.00020545,2]
[388582030,1759246235469,-594.84,0.00020546,2]
[388582031,1759246235479,-500.0,0.00020546,2]
[388582032,1759246235488,-500.0,0.00020546,2]
[388582033,1759246235497,-500.0,0.00020546,2]
[388582034,1759246235507,-531.549041,0.00020546,2]
[388582035,1759246235517,-403.22384077,0.00020546,2]
[388582036,1759246235526,-500.0,0.00020546,2]
[388582037,1759246235535,-500.0,0.00020546,2]
[388582038,1759246235547,-500.0,0.00020546,2]
[388582039,1759246235557,-500.0,0.00020546,2]
[388582040,1759246235566,-500.0,0.00020546,2]
[388582041,1759246235576,-501.87,0.00020546,2]
[388582042,1759246235585,-500.0,0.00020546,2]
[388582043,1759246235595,-500.0,0.00020546,2]
[388582044,1759246235604,-500.0,0.00020546,2]
[388582045,1759246235614,-306.92,0.00020546,2]
[388582046,1759246235624,-500.0,0.00020546,2]
[388582047,1759246235634,-500.0,0.00020546,2]
[388582048,1759246235643,-1636.14,0.00020546,2]
[388582049,1759246235652,-744.97,0.00020546,2]
[388582050,1759246235662,-512.32,0.00020546,2]
[388582051,1759246235671,-548.12,0.00020546,2]
[388582052,1759246235681,-500.0,0.00020546,2]
[388582053,1759246235690,-500.0,0.00020546,2]
[388582054,1759246235700,-500.0,0.00020546,2]
[388582055,1759246235709,-500.0,0.00020546,2]
[388582056,1759246235719,-500.0,0.00020546,2]
[388582057,1759246235728,-500.0,0.00020546,2]
[388582058,1759246235738,-500.0,0.00020547,2]
[388582059,1759246235747,-500.0,0.00020547,2]
[388582060,1759246235757,-500.0,0.00020547,2]
[388582061,1759246235767,-500.0,0.00020547,2]
[388582062,1759246235776,-500.0,0.00020547,2]
[388582063,1759246235786,-500.0,0.00020547,2]
[388582064,1759246235797,-402.74055468,0.00020547,2]
[388582065,1759246235806,-500.0,0.00020547,2]
[388582066,1759246235816,-500.0,0.00020547,2]
[388582067,1759246235825,-500.0,0.00020547,2]
[388582068,1759246235834,-500.0,0.00020547,2]
[388582069,1759246235843,-500.0,0.00020547,2]
[388582070,1759246235853,-500.0,0.00020547,2]
[388582071,1759246235862,-500.0,0.00020547,2]
[388582072,1759246235871,-500.0,0.00020547,2]
[388582073,1759246235881,-500.0,0.00020547,2]
[388582074,1759246235891,-500.0,0.00020547,2]
[388582075,1759246235900,-543.72639881,0.00020623,2]
[388582076,1759246235909,-122.8033542,0.0002081,2]
[388582077,1759246235979,-69.2666458,0.0002081,2]
[388582078,1759246235988,-292.23,0.00020811,3]
[388582079,1759246235998,-500.0,0.00020818,2]
[388582080,1759246236007,-500.0,0.00020818,2]
[388582081,1759246236017,-541.03,0.00020818,2]
[388582082,1759246236027,-500.0,0.00020818,2]
[388582083,1759246236036,-500.0,0.00020818,2]
[388582084,1759246236049,-500.0,0.00020818,2]
[388582085,1759246236059,-521.99,0.00020818,2]
[388582086,1759246236068,-435.07498597,0.00020818,2]
[388582087,1759246236077,-500.0,0.00020818,2]
[388582088,1759246236086,-927.55,0.00020818,2]
[388582089,1759246236095,-1173.01,0.00020818,2]
[388582090,1759246236105,-500.0,0.00020818,2]
[388582091,1759246236114,-1040.87,0.00020818,2]
[388582092,1759246236123,-500.0,0.00020819,2]
[388582093,1759246236132,-500.0,0.00020819,2]
[388582094,1759246236142,-460.0,0.00020819,2]
[388582095,1759246236151,-85.17000734,0.00020819,2]
[388582096,1759246236163,-255.57243791,0.00020819,2]
[388582097,1759246236174,-161.79755475,0.00020819,2]
[388582098,1759246236183,-500.0,0.00020819,2]
[388582099,1759246236192,-322.1636572,0.00020819,2]
[388582138,1759246238684,-421.13457279,0.00019449,2]
[388582141,1759246238693,-500.0,0.00019723,2]
[388582142,1759246238703,-309.37744863,0.00019723,2]
[388582161,1759246238868,-60.36790504,0.00019723,2]
[388582163,1759246238878,-228.7763428,0.00020819,2]
[388582165,1759246238887,-694.38,0.00020819,2]
[388582167,1759246238896,-500.0,0.00020819,2]
[388582169,1759246238906,-594.84,0.0002082,2]
[388582171,1759246238915,-500.0,0.0002082,2]
[388582173,1759246238925,-31.88575266,0.0002082,2]
[388583647,1759246254651,-1000.0,0.00020055,2]
[388583649,1759246254661,-468.11424734,0.0002082,2]
[388583651,1759246254671,-500.0,0.0002082,2]
[388583653,1759246254681,-500.0,0.0002082,2]
[388583655,1759246254690,-500.0,0.0002082,2]
[388583657,1759246254700,-500.0,0.0002082,2]
[388583659,1759246254710,-500.0,0.0002082,2]
[388583661,1759246254719,-500.0,0.0002082,2]
[388583663,1759246254729,-501.87,0.0002082,2]
[388583665,1759246254738,-500.0,0.0002082,2]
[388583667,1759246254747,-500.0,0.0002082,2]
[388583669,1759246254756,-500.0,0.0002082,2]
[388583671,1759246254766,-500.0,0.0002082,2]
[388583673,1759246254775,-380.0,0.0002082,2]
[388583675,1759246254784,-1636.14,0.0002082,2]
[388583677,1759246254794,-744.97,0.0002082,2]
[388583679,1759246254803,-512.32,0.0002082,2]
[388583681,1759246254812,-548.12,0.0002082,2]
[388583683,1759246254822,-500.0,0.0002082,2]
[388583685,1759246254832,-500.0,0.0002082,2]
[388583686,1759246254842,-500.0,0.0002082,2]
[388583688,1759246254851,-500.0,0.0002082,2]
[388583690,1759246254861,-500.0,0.0002082,2]
[388583692,1759246254871,-500.0,0.0002082,2]
[388583694,1759246254880,-380.0,0.00020821,2]
[388583696,1759246254889,-500.0,0.00020821,2]
[388583698,1759246254899,-500.0,0.00020821,2]
[388583700,1759246254909,-500.0,0.00020821,2]
[388583702,1759246254918,-500.0,0.00020821,2]
[388583704,1759246254928,-500.0,0.00020821,2]
[388583706,1759246254937,-500.0,0.00020821,2]
[388583708,1759246254947,-500.0,0.00020821,2]
[388583710,1759246254957,-500.0,0.00020821,2]
[388583712,1759246254966,-318.58,0.00020821,2]
[388583714,1759246254975,-500.0,0.00020821,2]
[388583716,1759246254985,-500.0,0.00020821,2]
[388583718,1759246254995,-500.0,0.00020821,2]
[388583720,1759246255004,-500.0,0.00020821,2]
[388583722,1759246255014,-500.0,0.00020821,2]
[388583724,1759246255023,-500.0,0.00020821,2]
[388583726,1759246255034,-500.0,0.00020863,2]
[388583728,1759246255044,-500.91878039,0.00020873,2]
[388583730,1759246255054,-500.0,0.00020873,2]
[388583732,1759246255066,-1592.26330335,0.0002104,2]
[388583734,1759246255075,-500.0,0.00021073,2]
[388583736,1759246255085,-500.56568405,0.00021073,2]
[388583738,1759246255093,-565.83279145,0.00021073,2]
[388583740,1759246255103,-192.07,0.00021084,2]
[388583742,1759246255112,-500.0,0.00021092,2]
[388583744,1759246255122,-500.0,0.00021092,2]
[388583746,1759246255131,-541.03,0.00021092,2]
[388583748,1759246255140,-500.0,0.00021092,2]
[388583749,1759246255149,-500.0,0.00021092,2]
[388583751,1759246255158,-500.0,0.00021092,2]
[388583753,1759246255167,-521.99,0.00021092,2]
[388583756,1759246255177,-500.0,0.00021092,2]
[388583758,1759246255187,-927.55,0.00021092,2]
[388583760,1759246255205,-1173.01,0.00021092,2]
[388583763,1759246255216,-500.0,0.00021092,2]
[388583769,1759246255409,-1040.87,0.00021092,2]
[388583770,1759246255419,-500.0,0.00021093,2]
[388583771,1759246255428,-500.0,0.00021093,2]
[388583772,1759246255437,-502.54,0.00021093,2]
[388583773,1759246255446,-500.0,0.00021093,2]
[388583774,1759246255455,-550.94,0.00021093,2]
[388583775,1759246255463,-694.38,0.00021093,2]
[388583776,1759246255472,-500.0,0.00021093,2]
[388583777,1759246255481,-594.84,0.00021094,2]
[388583778,1759246255491,-169.07809138,0.00021094,2]
[388583779,1759246255499,-500.0,0.00021094,2]
[388583780,1759246255508,-500.0,0.00021094,2]
[388583781,1759246255517,-500.0,0.00021094,2]
[388583782,1759246255526,-500.0,0.00021094,2]
[388583783,1759246255534,-500.0,0.00021094,2]
[388583784,1759246255543,-500.0,0.00021094,2]
[388583785,1759246255552,-500.0,0.00021094,2]
[388583786,1759246255561,-501.87,0.00021094,2]
[388583787,1759246255572,-497.7398361,0.00021094,2]
[388583788,1759246255581,-500.0,0.00021094,2]
[388583789,1759246255590,-500.0,0.00021094,2]
[388583790,1759246255600,-500.0,0.00021094,2]
[388583791,1759246255609,-1636.14,0.00021094,2]
[388583792,1759246255618,-744.97,0.00021094,2]
[388583793,1759246255627,-512.32,0.00021094,2]
[388583794,1759246255636,-548.12,0.00021094,2]
[388583795,1759246255645,-308.25273319,0.00021094,2]
[388583797,1759246255654,-500.0,0.00021094,2]
[388583798,1759246255663,-509.18424862,0.00021094,2]
[388583800,1759246255673,-500.0,0.00021094,2]
[388583802,1759246255683,-500.0,0.00021094,2]
[388583804,1759246255692,-500.0,0.00021094,2]
[388583806,1759246255702,-500.0,0.00021095,2]
[388583808,1759246255711,-500.0,0.00021095,2]
[388583810,1759246255720,-500.0,0.00021095,2]
[388583812,1759246255730,-500.0,0.00021095,2]
[388583814,1759246255739,-500.0,0.00021095,2]
[388583816,1759246255748,-500.0,0.00021095,2]
[388583818,1759246255758,-500.0,0.00021095,2]
[388583820,1759246255768,-500.0,0.00021095,2]
[388583822,1759246255777,-500.0,0.00021095,2]
[388583824,1759246255786,-500.0,0.00021095,2]
[388583826,1759246255795,-500.0,0.00021095,2]
[388583828,1759246255804,-500.0,0.00021095,2]
[388583830,1759246255814,-500.0,0.00021095,2]
[388583832,1759246255824,-389.80719304,0.00021095,2]
[388583834,1759246255834,-292.23,0.00021358,3]
[388583836,1759246255844,-500.0,0.00021366,2]
[388583838,1759246255853,-500.0,0.00021366,2]
[388583840,1759246255863,-541.03,0.00021366,2]
[388583842,1759246255872,-500.0,0.00021366,2]
[388583844,1759246255882,-532.15978063,0.00021366,2]
[388583845,1759246255891,-500.0,0.00021366,2]
[388583847,1759246255901,-521.99,0.00021366,2]
[388583849,1759246255910,-500.0,0.00021366,2]
[388583851,1759246255920,-927.55,0.00021366,2]
[388583853,1759246255929,-1173.01,0.00021366,2]
[388583855,1759246255938,-500.0,0.00021366,2]
[388583857,1759246255948,-1040.87,0.00021366,2]
[388583859,1759246255957,-500.0,0.00021367,2]
[388583861,1759246255966,-500.0,0.00021367,2]
[388583863,1759246255974,-502.54,0.00021367,2]
[388583865,1759246255983,-500.0,0.00021367,2]
[388583867,1759246255992,-550.94,0.00021367,2]
[388583869,1759246256002,-694.38,0.00021367,2]
[388583871,1759246256011,-500.0,0.00021367,2]
[388583873,1759246256021,-594.84,0.00021368,2]
[388583875,1759246256030,-500.0,0.00021368,2]
[388583877,1759246256040,-500.0,0.00021368,2]
[388583879,1759246256050,-500.0,0.00021368,2]
[388583881,1759246256059,-500.0,0.00021368,2]
[388583883,1759246256070,-500.0,0.00021368,2]
[388583885,1759246256080,-500.0,0.00021368,2]
[388583887,1759246256089,-500.0,0.00021368,2]
[388583889,1759246256099,-501.87,0.00021368,2]
[388583891,1759246256110,-500.0,0.00021368,2]
[388583893,1759246256119,-500.0,0.00021368,2]
[388583895,1759246256129,-500.0,0.00021368,2]
[388583897,1759246256139,-1636.14,0.00021368,2]
[388583899,1759246256150,-744.97,0.00021368,2]
[388583901,1759246256159,-512.32,0.00021368,2]
[388583903,1759246256168,-548.12,0.00021368,2]
[388583905,1759246256177,-500.0,0.00021368,2]